[Event "Titled Tuesday Blitz May 23 Early 2023"]
[White "djokovic74"]
[Black "Starozhilov, Leonid"]
[BlackFideId "14106752"]
[WhiteElo "2601"]
[BlackElo "2352"]
[Result "1-0"]
[Round "08"]
[TimeControl "180+2"]
[Date "2023.05.23"]
[WhiteClock "0:00:03"]
[BlackClock "0:00:04"]

1. e4 {[%clk 0:03:00]}  g6 {[%clk 0:02:59]} 2. d4 {[%clk 0:03:00]}  Bg7 {[%clk 0:02:59]} 3. Nf3 {[%clk 0:03:00]}  d6 {[%clk 0:02:59]} 4. Nc3 {[%clk 0:03:01]}  Nf6 {[%clk 0:02:58]} 5. Be2 {[%clk 0:03:01]}  O-O {[%clk 0:02:57]} 6. O-O {[%clk 0:03:01]}  Bg4 {[%clk 0:02:57]} 7. h3 {[%clk 0:03:00]}  Bxf3 {[%clk 0:02:57]} 8. Bxf3 {[%clk 0:03:00]}  Nc6 {[%clk 0:02:58]} 9. Ne2 {[%clk 0:03:00]}  e5 {[%clk 0:02:57]} 10. c3 {[%clk 0:03:01]}  Re8 {[%clk 0:02:55]} 11. d5 {[%clk 0:02:56]}  Ne7 {[%clk 0:02:55]} 12. c4 {[%clk 0:02:54]}  Nd7 {[%clk 0:02:53]} 13. Nc3 {[%clk 0:02:22]}  f5 {[%clk 0:02:47]} 14. Rb1 {[%clk 0:02:04]}  f4 {[%clk 0:02:23]} 15. b4 {[%clk 0:02:02]}  h5 {[%clk 0:02:22]} 16. Na4 {[%clk 0:01:42]}  Nf6 {[%clk 0:02:21]} 17. c5 {[%clk 0:01:42]}  Rf8 {[%clk 0:02:06]} 18. Re1 {[%clk 0:01:40]}  Qe8 {[%clk 0:02:01]} 19. b5 {[%clk 0:01:38]}  g5 {[%clk 0:01:52]} 20. Ba3 {[%clk 0:01:37]}  Nc8 {[%clk 0:01:20]} 21. Qe2 {[%clk 0:01:12]}  Qg6 {[%clk 0:01:16]} 22. g4 {[%clk 0:01:10]}  fxg3 {[%clk 0:01:11]} 23. fxg3 {[%clk 0:01:11]}  g4 {[%clk 0:01:11]} 24. hxg4 {[%clk 0:00:55]}  Nxg4 {[%clk 0:00:56]} 25. Bxg4 {[%clk 0:00:53]}  hxg4 {[%clk 0:00:55]} 26. Rf1 {[%clk 0:00:46]}  Ne7 {[%clk 0:00:48]} 27. Kg2 {[%clk 0:00:34]}  Bh6 {[%clk 0:00:42]} 28. Nc3 {[%clk 0:00:34]}  Kg7 {[%clk 0:00:37]} 29. Rxf8 {[%clk 0:00:30]}  Rxf8 {[%clk 0:00:36]} 30. Rf1 {[%clk 0:00:22]}  Rh8 {[%clk 0:00:31]} 31. Rh1 {[%clk 0:00:15]}  b6 {[%clk 0:00:28]} 32. cxd6 {[%clk 0:00:15]}  cxd6 {[%clk 0:00:28]} 33. Rh4 {[%clk 0:00:15]}  Bg5 {[%clk 0:00:25]} 34. Rxh8 {[%clk 0:00:13]}  Kxh8 {[%clk 0:00:24]} 35. Qxg4 {[%clk 0:00:14]}  Kg7 {[%clk 0:00:19]} 36. Qd7 {[%clk 0:00:10]}  Bf6 {[%clk 0:00:13]} 37. Bxd6 {[%clk 0:00:07]}  Qg5 {[%clk 0:00:10]} 38. Bxe7 {[%clk 0:00:02]}  Bxe7 {[%clk 0:00:07]} 39. Ne2 {[%clk 0:00:02]}  Qf6 {[%clk 0:00:04]} 40. Ng1 {[%clk 0:00:01]}  Kf8 {[%clk 0:00:03]} 41. Nf3 {[%clk 0:00:02]}  Kg7 {[%clk 0:00:02]} 42. Qxa7 {[%clk 0:00:01]}  Kg6 {[%clk 0:00:01]} 43. Qd7 {[%clk 0:00:02]}  Bd6 {[%clk 0:00:02]} 44. Qg4+ {[%clk 0:00:02]}  Kf7 {[%clk 0:00:02]} 45. Ng5+ {[%clk 0:00:02]}  Ke8 {[%clk 0:00:02]} 46. Ne6 {[%clk 0:00:03]}  Ke7 {[%clk 0:00:03]} 47. Qg8 {[%clk 0:00:03]}  Qf7 {[%clk 0:00:04]} 48. Qd8# {[%clk 0:00:03]} 1-0


[Site "https://www.chess.com"]

[Event "Titled Tuesday Blitz May 23 Early 2023"]
[White "Melian, Juan Sebastian"]
[Black "Radzhabov, Rodion"]
[WhiteFideId "3706575"]
[BlackFideId "884715"]
[WhiteElo "2092"]
[BlackElo "2215"]
[Result "0-1"]
[Round "08"]
[TimeControl "180+2"]
[Date "2023.05.23"]
[WhiteClock "0:00:00"]
[BlackClock "0:00:31"]

1. d4 {[%clk 0:02:50]}  Nf6 {[%clk 0:02:59]} 2. c4 {[%clk 0:02:50]}  e6 {[%clk 0:02:59]} 3. Nc3 {[%clk 0:02:51]}  Bb4 {[%clk 0:02:59]} 4. Qc2 {[%clk 0:02:51]}  c5 {[%clk 0:02:59]} 5. dxc5 {[%clk 0:02:45]}  O-O {[%clk 0:02:59]} 6. Nf3 {[%clk 0:02:24]}  Na6 {[%clk 0:02:50]} 7. a3 {[%clk 0:02:21]}  Bxc3+ {[%clk 0:02:49]} 8. Qxc3 {[%clk 0:02:19]}  Nxc5 {[%clk 0:02:49]} 9. b4 {[%clk 0:02:20]}  Nce4 {[%clk 0:02:49]} 10. Qb2 {[%clk 0:02:15]}  Ng4 {[%clk 0:02:38]} 11. Qc2 {[%clk 0:01:41]}  Ngxf2 {[%clk 0:02:31]} 12. Rg1 {[%clk 0:01:36]}  d5 {[%clk 0:02:17]} 13. h3 {[%clk 0:01:25]}  Qc7 {[%clk 0:02:07]} 14. g3 {[%clk 0:01:05]}  e5 {[%clk 0:01:51]} 15. g4 {[%clk 0:00:18]}  f5 {[%clk 0:01:50]} 16. g5 {[%clk 0:00:16]}  f4 {[%clk 0:01:47]} 17. Bb2 {[%clk 0:00:10]}  Bf5 {[%clk 0:01:44]} 18. Bxe5 {[%clk 0:00:05]}  Qe7 {[%clk 0:01:12]} 19. Qb3 {[%clk 0:00:04]}  dxc4 {[%clk 0:01:09]} 20. Qxc4+ {[%clk 0:00:05]}  Be6 {[%clk 0:01:10]} 21. Qc2 {[%clk 0:00:03]}  Rac8 {[%clk 0:01:09]} 22. Qb2 {[%clk 0:00:04]}  Qd7 {[%clk 0:00:57]} 23. Bd4 {[%clk 0:00:04]}  Nxh3 {[%clk 0:00:51]} 24. Ne5 {[%clk 0:00:04]}  Qd5 {[%clk 0:00:47]} 25. Bxh3 {[%clk 0:00:03]}  Bxh3 {[%clk 0:00:47]} 26. Nf3 {[%clk 0:00:03]}  Rfe8 {[%clk 0:00:35]} 27. Rd1 {[%clk 0:00:03]}  Ng3 {[%clk 0:00:34]} 28. Be5 {[%clk 0:00:01]}  Qe4 {[%clk 0:00:32]} 29. Rd2 {[%clk 0:00:01]}  Bg4 {[%clk 0:00:31]} 30. Rg2 {[%clk 0:00:00]}  Bxf3 {[%clk 0:00:31]} 0-1


[Site "https://www.chess.com"]

[Event "Titled Tuesday Blitz May 23 Early 2023"]
[White "Manukyan, Artyom"]
[Black "Prohaszka, Peter"]
[WhiteFideId "13305786"]
[BlackFideId "726265"]
[WhiteElo "2078"]
[BlackElo "2626"]
[Result "0-1"]
[Round "08"]
[TimeControl "180+2"]
[Date "2023.05.23"]
[WhiteClock "0:00:10"]
[BlackClock "0:00:53"]

1. e4 {[%clk 0:02:49]}  c6 {[%clk 0:03:00]} 2. d4 {[%clk 0:02:47]}  d5 {[%clk 0:03:01]} 3. exd5 {[%clk 0:02:48]}  cxd5 {[%clk 0:03:02]} 4. Bd3 {[%clk 0:02:46]}  Nf6 {[%clk 0:03:03]} 5. c3 {[%clk 0:02:47]}  Nc6 {[%clk 0:03:02]} 6. Bf4 {[%clk 0:02:35]}  Bg4 {[%clk 0:03:02]} 7. Qb3 {[%clk 0:02:34]}  Qd7 {[%clk 0:03:01]} 8. Nd2 {[%clk 0:02:35]}  e6 {[%clk 0:03:02]} 9. Ngf3 {[%clk 0:02:35]}  Bd6 {[%clk 0:03:02]} 10. Bxd6 {[%clk 0:02:35]}  Qxd6 {[%clk 0:03:03]} 11. O-O {[%clk 0:02:36]}  O-O {[%clk 0:03:03]} 12. Rae1 {[%clk 0:02:36]}  Qc7 {[%clk 0:03:03]} 13. Ne5 {[%clk 0:02:34]}  Nxe5 {[%clk 0:03:03]} 14. dxe5 {[%clk 0:02:35]}  Nd7 {[%clk 0:03:04]} 15. Qc2 {[%clk 0:02:34]}  g6 {[%clk 0:02:14]} 16. f4 {[%clk 0:02:31]}  Bf5 {[%clk 0:02:06]} 17. Bxf5 {[%clk 0:02:29]}  gxf5 {[%clk 0:02:06]} 18. Rf3 {[%clk 0:02:26]}  Kh8 {[%clk 0:02:07]} 19. Rh3 {[%clk 0:02:26]}  Rg8 {[%clk 0:02:06]} 20. Nf3 {[%clk 0:02:16]}  Nf8 {[%clk 0:02:05]} 21. Ng5 {[%clk 0:02:12]}  Rg6 {[%clk 0:02:02]} 22. Qf2 {[%clk 0:01:58]}  Qb6 {[%clk 0:01:47]} 23. Nxf7+ {[%clk 0:01:49]}  Kg7 {[%clk 0:01:47]} 24. Ng5 {[%clk 0:01:44]}  h6 {[%clk 0:01:44]} 25. Nf3 {[%clk 0:01:43]}  Qxf2+ {[%clk 0:01:44]} 26. Kxf2 {[%clk 0:01:43]}  Rg4 {[%clk 0:01:36]} 27. Rg3 {[%clk 0:01:43]}  Ng6 {[%clk 0:01:34]} 28. Rxg4 {[%clk 0:01:29]}  fxg4 {[%clk 0:01:35]} 29. Nd4 {[%clk 0:01:30]}  Nxf4 {[%clk 0:01:22]} 30. Kg3 {[%clk 0:01:27]}  Rf8 {[%clk 0:01:22]} 31. Kxg4 {[%clk 0:01:19]}  Kg6 {[%clk 0:01:18]} 32. g3 {[%clk 0:01:05]}  h5+ {[%clk 0:01:16]} 33. Kf3 {[%clk 0:00:56]}  Nd3+ {[%clk 0:01:16]} 34. Ke2 {[%clk 0:00:53]}  Nxe1 {[%clk 0:01:16]} 35. Kxe1 {[%clk 0:00:54]}  Kf7 {[%clk 0:01:13]} 36. Ke2 {[%clk 0:00:53]}  a6 {[%clk 0:01:09]} 37. Ke3 {[%clk 0:00:52]}  Rg8 {[%clk 0:01:06]} 38. Kf3 {[%clk 0:00:37]}  Rg5 {[%clk 0:01:05]} 39. h3 {[%clk 0:00:18]}  Rxe5 {[%clk 0:01:04]} 40. g4 {[%clk 0:00:19]}  hxg4+ {[%clk 0:00:58]} 41. hxg4 {[%clk 0:00:20]}  Re1 {[%clk 0:00:58]} 42. g5 {[%clk 0:00:14]}  e5 {[%clk 0:00:53]} 43. Nf5 {[%clk 0:00:13]}  Rf1+ {[%clk 0:00:54]} 44. Kg4 {[%clk 0:00:10]}  Rf4+ {[%clk 0:00:53]} 0-1


[Site "https://www.chess.com"]

[Event "Titled Tuesday Blitz May 23 Early 2023"]
[White "Fier, Alexandr"]
[Black "Toncheva, Nadya"]
[WhiteFideId "2107139"]
[BlackFideId "2924056"]
[WhiteElo "2610"]
[BlackElo "2101"]
[Result "1-0"]
[Round "08"]
[TimeControl "180+2"]
[Date "2023.05.23"]
[WhiteClock "0:01:13"]
[BlackClock "0:00:02"]

1. e4 {[%clk 0:02:59]}  c5 {[%clk 0:03:00]} 2. Nf3 {[%clk 0:02:55]}  Nc6 {[%clk 0:03:00]} 3. d4 {[%clk 0:02:55]}  cxd4 {[%clk 0:03:01]} 4. Nxd4 {[%clk 0:02:56]}  g6 {[%clk 0:03:02]} 5. Nc3 {[%clk 0:02:54]}  Bg7 {[%clk 0:03:02]} 6. Be3 {[%clk 0:02:54]}  Nf6 {[%clk 0:03:03]} 7. Bc4 {[%clk 0:02:52]}  O-O {[%clk 0:03:03]} 8. Bb3 {[%clk 0:02:52]}  d6 {[%clk 0:03:03]} 9. f3 {[%clk 0:02:53]}  Bd7 {[%clk 0:03:02]} 10. h4 {[%clk 0:02:52]}  h5 {[%clk 0:03:01]} 11. Qd2 {[%clk 0:02:52]}  Rc8 {[%clk 0:02:58]} 12. O-O-O {[%clk 0:02:51]}  Na5 {[%clk 0:02:58]} 13. Kb1 {[%clk 0:02:49]}  Nc4 {[%clk 0:02:57]} 14. Bxc4 {[%clk 0:02:49]}  Rxc4 {[%clk 0:02:58]} 15. g4 {[%clk 0:02:48]}  b5 {[%clk 0:02:49]} 16. gxh5 {[%clk 0:02:44]}  Nxh5 {[%clk 0:02:48]} 17. Rdg1 {[%clk 0:02:44]}  e6 {[%clk 0:02:01]} 18. Rg5 {[%clk 0:02:42]}  b4 {[%clk 0:01:59]} 19. Nce2 {[%clk 0:02:41]}  Rc5 {[%clk 0:01:55]} 20. f4 {[%clk 0:02:23]}  a5 {[%clk 0:01:45]} 21. f5 {[%clk 0:02:22]}  exf5 {[%clk 0:01:36]} 22. exf5 {[%clk 0:02:14]}  Bxf5 {[%clk 0:01:19]} 23. Nxf5 {[%clk 0:02:12]}  Rxf5 {[%clk 0:01:20]} 24. Rxf5 {[%clk 0:02:12]}  gxf5 {[%clk 0:01:21]} 25. Rg1 {[%clk 0:02:12]}  Kh7 {[%clk 0:01:10]} 26. Rg5 {[%clk 0:02:11]}  Nf6 {[%clk 0:01:01]} 27. Ng3 {[%clk 0:02:08]}  Ne4 {[%clk 0:00:49]} 28. Nxe4 {[%clk 0:01:59]}  fxe4 {[%clk 0:00:50]} 29. Bd4 {[%clk 0:01:59]}  f6 {[%clk 0:00:36]} 30. Rh5+ {[%clk 0:01:52]}  Kg8 {[%clk 0:00:35]} 31. Qg2 {[%clk 0:01:50]}  Qe8 {[%clk 0:00:32]} 32. Rf5 {[%clk 0:01:36]}  e3 {[%clk 0:00:26]} 33. Rf1 {[%clk 0:01:29]}  Qa8 {[%clk 0:00:23]} 34. Qg4 {[%clk 0:01:26]}  Qd5 {[%clk 0:00:19]} 35. Bxe3 {[%clk 0:01:23]}  Re8 {[%clk 0:00:19]} 36. Bh6 {[%clk 0:01:22]}  Qf7 {[%clk 0:00:17]} 37. Rg1 {[%clk 0:01:21]}  Re7 {[%clk 0:00:17]} 38. Bf4 {[%clk 0:01:20]}  Kh7 {[%clk 0:00:16]} 39. Qf5+ {[%clk 0:01:19]}  Kg8 {[%clk 0:00:17]} 40. h5 {[%clk 0:01:19]}  Kh8 {[%clk 0:00:11]} 41. h6 {[%clk 0:01:18]}  Bf8 {[%clk 0:00:11]} 42. Bxd6 {[%clk 0:01:15]}  Re8 {[%clk 0:00:06]} 43. Bf4 {[%clk 0:01:15]}  Qe6 {[%clk 0:00:05]} 44. Qg6 {[%clk 0:01:13]}  Qe7 {[%clk 0:00:02]} 1-0


[Site "https://www.chess.com"]

[Event "Titled Tuesday Blitz May 23 Early 2023"]
[White "Ilamparthi A R"]
[Black "Degenbaev, Aziz"]
[WhiteFideId "45015775"]
[BlackFideId "13802640"]
[WhiteElo "2348"]
[BlackElo "2152"]
[Result "1-0"]
[Round "08"]
[TimeControl "180+2"]
[Date "2023.05.23"]
[WhiteClock "0:01:10"]
[BlackClock "0:00:18"]

1. e4 {[%clk 0:02:45]}  c5 {[%clk 0:02:59]} 2. Nf3 {[%clk 0:02:43]}  d6 {[%clk 0:02:59]} 3. d3 {[%clk 0:02:43]}  Nc6 {[%clk 0:02:56]} 4. g3 {[%clk 0:02:44]}  g6 {[%clk 0:02:54]} 5. Bg2 {[%clk 0:02:43]}  Bg7 {[%clk 0:02:55]} 6. O-O {[%clk 0:02:43]}  e6 {[%clk 0:02:55]} 7. Re1 {[%clk 0:02:41]}  Nge7 {[%clk 0:02:56]} 8. c3 {[%clk 0:02:42]}  e5 {[%clk 0:02:42]} 9. a3 {[%clk 0:02:42]}  a5 {[%clk 0:02:41]} 10. a4 {[%clk 0:02:41]}  O-O {[%clk 0:02:41]} 11. Na3 {[%clk 0:02:41]}  h6 {[%clk 0:02:39]} 12. Be3 {[%clk 0:02:40]}  f5 {[%clk 0:02:36]} 13. Nb5 {[%clk 0:02:35]}  f4 {[%clk 0:02:33]} 14. Qb3+ {[%clk 0:02:34]}  Kh8 {[%clk 0:02:30]} 15. Bc1 {[%clk 0:02:33]}  g5 {[%clk 0:02:30]} 16. d4 {[%clk 0:02:27]}  cxd4 {[%clk 0:02:22]} 17. cxd4 {[%clk 0:02:26]}  g4 {[%clk 0:02:12]} 18. Nh4 {[%clk 0:02:25]}  f3 {[%clk 0:02:13]} 19. Bf1 {[%clk 0:02:24]}  Nxd4 {[%clk 0:02:11]} 20. Nxd4 {[%clk 0:02:24]}  exd4 {[%clk 0:02:12]} 21. Rd1 {[%clk 0:02:19]}  Qe8 {[%clk 0:02:04]} 22. Qa3 {[%clk 0:01:57]}  Ng6 {[%clk 0:01:22]} 23. Nf5 {[%clk 0:01:45]}  Bxf5 {[%clk 0:01:22]} 24. exf5 {[%clk 0:01:46]}  Rxf5 {[%clk 0:01:22]} 25. Qxd6 {[%clk 0:01:41]}  Rd8 {[%clk 0:01:18]} 26. Qb6 {[%clk 0:01:40]}  Re5 {[%clk 0:00:50]} 27. Bd2 {[%clk 0:01:36]}  h5 {[%clk 0:00:30]} 28. Bd3 {[%clk 0:01:32]}  Re6 {[%clk 0:00:28]} 29. Qxa5 {[%clk 0:01:32]}  Ne5 {[%clk 0:00:27]} 30. Bf1 {[%clk 0:01:28]}  h4 {[%clk 0:00:27]} 31. Bg5 {[%clk 0:01:21]}  hxg3 {[%clk 0:00:26]} 32. hxg3 {[%clk 0:01:21]}  Rdd6 {[%clk 0:00:23]} 33. Re1 {[%clk 0:01:17]}  Qh5 {[%clk 0:00:23]} 34. Bh4 {[%clk 0:01:14]}  Bf6 {[%clk 0:00:20]} 35. Bxf6+ {[%clk 0:01:10]}  Rxf6 {[%clk 0:00:18]} 36. Qxe5 {[%clk 0:01:10]} 1-0


[Site "https://www.chess.com"]

[Event "Titled Tuesday Blitz May 23 Early 2023"]
[White "Djordjevic, Vuk"]
[Black "Filipascu"]
[WhiteFideId "902098"]
[WhiteElo "2452"]
[BlackElo "2541"]
[Result "1-0"]
[Round "08"]
[TimeControl "180+2"]
[Date "2023.05.23"]
[WhiteClock "0:01:17"]
[BlackClock "0:00:05"]

1. e4 {[%clk 0:03:00]}  c5 {[%clk 0:02:59]} 2. Nc3 {[%clk 0:03:01]}  g6 {[%clk 0:02:59]} 3. g3 {[%clk 0:03:01]}  Bg7 {[%clk 0:02:59]} 4. Bg2 {[%clk 0:03:01]}  Nc6 {[%clk 0:02:59]} 5. d3 {[%clk 0:03:02]}  e6 {[%clk 0:02:59]} 6. Be3 {[%clk 0:03:02]}  d6 {[%clk 0:02:59]} 7. Qd2 {[%clk 0:03:02]}  Nd4 {[%clk 0:02:54]} 8. Nd1 {[%clk 0:03:02]}  Ne7 {[%clk 0:02:49]} 9. c3 {[%clk 0:03:01]}  Ndc6 {[%clk 0:02:49]} 10. Bh6 {[%clk 0:03:01]}  Bf6 {[%clk 0:02:48]} 11. h4 {[%clk 0:03:01]}  Bd7 {[%clk 0:02:45]} 12. h5 {[%clk 0:03:01]}  Qb6 {[%clk 0:02:36]} 13. Ne3 {[%clk 0:02:59]}  Ng8 {[%clk 0:02:08]} 14. Ng4 {[%clk 0:02:55]}  Qd8 {[%clk 0:01:50]} 15. Nxf6+ {[%clk 0:02:52]}  Qxf6 {[%clk 0:01:51]} 16. Bg5 {[%clk 0:02:52]}  Qg7 {[%clk 0:01:51]} 17. Ne2 {[%clk 0:02:41]}  h6 {[%clk 0:01:51]} 18. Be3 {[%clk 0:02:39]}  g5 {[%clk 0:01:51]} 19. O-O-O {[%clk 0:02:39]}  O-O-O {[%clk 0:01:48]} 20. d4 {[%clk 0:02:39]}  cxd4 {[%clk 0:01:47]} 21. cxd4 {[%clk 0:02:37]}  d5 {[%clk 0:01:33]} 22. exd5 {[%clk 0:02:33]}  exd5 {[%clk 0:01:34]} 23. Bxd5 {[%clk 0:02:34]}  Nge7 {[%clk 0:01:35]} 24. Bg2 {[%clk 0:02:31]}  Bf5 {[%clk 0:01:32]} 25. d5 {[%clk 0:02:29]}  Kb8 {[%clk 0:01:27]} 26. Nd4 {[%clk 0:02:22]}  Nxd4 {[%clk 0:01:15]} 27. Bxd4 {[%clk 0:02:20]}  f6 {[%clk 0:01:10]} 28. Qa5 {[%clk 0:01:48]}  Rc8+ {[%clk 0:01:05]} 29. Bc3 {[%clk 0:01:42]}  Bh7 {[%clk 0:00:34]} 30. d6 {[%clk 0:01:41]}  Nc6 {[%clk 0:00:34]} 31. Bxc6 {[%clk 0:01:36]}  bxc6 {[%clk 0:00:25]} 32. d7 {[%clk 0:01:36]}  Rcd8 {[%clk 0:00:25]} 33. Qb4+ {[%clk 0:01:35]}  Ka8 {[%clk 0:00:24]} 34. Qd6 {[%clk 0:01:35]}  Qf7 {[%clk 0:00:06]} 35. Qxc6+ {[%clk 0:01:34]}  Kb8 {[%clk 0:00:07]} 36. Rd4 {[%clk 0:01:29]}  a5 {[%clk 0:00:06]} 37. Bxa5 {[%clk 0:01:27]}  Rxd7 {[%clk 0:00:05]} 38. Rxd7 {[%clk 0:01:17]} 1-0


[Site "https://www.chess.com"]

[Event "Titled Tuesday Blitz May 23 Early 2023"]
[White "gueraumasague"]
[Black "Wagner, Dennis"]
[BlackFideId "24650684"]
[WhiteElo "2539"]
[BlackElo "2478"]
[Result "1-0"]
[Round "08"]
[TimeControl "180+2"]
[Date "2023.05.23"]
[WhiteClock "0:00:30"]
[BlackClock "0:00:54"]

1. e4 {[%clk 0:03:00]}  c5 {[%clk 0:02:59]} 2. Nc3 {[%clk 0:03:00]}  e6 {[%clk 0:02:59]} 3. f4 {[%clk 0:02:56]}  d5 {[%clk 0:02:56]} 4. Bb5+ {[%clk 0:02:56]}  Bd7 {[%clk 0:02:56]} 5. Bxd7+ {[%clk 0:02:55]}  Qxd7 {[%clk 0:02:55]} 6. d3 {[%clk 0:02:55]}  Nc6 {[%clk 0:02:54]} 7. Nf3 {[%clk 0:02:55]}  dxe4 {[%clk 0:02:52]} 8. dxe4 {[%clk 0:02:53]}  Qxd1+ {[%clk 0:02:51]} 9. Nxd1 {[%clk 0:02:54]}  Nf6 {[%clk 0:02:49]} 10. Nd2 {[%clk 0:02:40]}  O-O-O {[%clk 0:02:44]} 11. c3 {[%clk 0:02:32]}  Be7 {[%clk 0:02:43]} 12. Ne3 {[%clk 0:02:30]}  h5 {[%clk 0:02:39]} 13. e5 {[%clk 0:02:22]}  Ng4 {[%clk 0:02:31]} 14. Ne4 {[%clk 0:02:20]}  f5 {[%clk 0:02:17]} 15. exf6 {[%clk 0:02:00]}  gxf6 {[%clk 0:02:18]} 16. h3 {[%clk 0:01:48]}  Nxe3 {[%clk 0:02:13]} 17. Bxe3 {[%clk 0:01:48]}  Rhg8 {[%clk 0:02:12]} 18. O-O {[%clk 0:01:39]}  b6 {[%clk 0:02:06]} 19. f5 {[%clk 0:01:39]}  Rd3 {[%clk 0:02:03]} 20. Rae1 {[%clk 0:01:38]}  e5 {[%clk 0:01:49]} 21. Kf2 {[%clk 0:01:17]}  Na5 {[%clk 0:01:47]} 22. Rd1 {[%clk 0:01:16]}  Rd7 {[%clk 0:01:37]} 23. b3 {[%clk 0:01:08]}  c4 {[%clk 0:01:35]} 24. Rxd7 {[%clk 0:00:57]}  Kxd7 {[%clk 0:01:35]} 25. Rd1+ {[%clk 0:00:58]}  Kc6 {[%clk 0:01:35]} 26. b4 {[%clk 0:00:58]}  Nb7 {[%clk 0:01:36]} 27. Kf3 {[%clk 0:00:48]}  a6 {[%clk 0:01:28]} 28. a4 {[%clk 0:00:40]}  b5 {[%clk 0:00:58]} 29. axb5+ {[%clk 0:00:38]}  axb5 {[%clk 0:00:59]} 30. Ra1 {[%clk 0:00:38]}  Nd6 {[%clk 0:00:59]} 31. Ra6+ {[%clk 0:00:33]}  Kd5 {[%clk 0:00:59]} 32. Rxd6+ {[%clk 0:00:29]}  Bxd6 {[%clk 0:00:54]} 33. Nxf6+ {[%clk 0:00:30]} 1-0


[Site "https://www.chess.com"]

[Event "Titled Tuesday Blitz May 23 Early 2023"]
[White "Mladek, Richard"]
[Black "Samunenkov, Ihor"]
[WhiteFideId "386588"]
[BlackFideId "14187086"]
[WhiteElo "2332"]
[BlackElo "2457"]
[Result "0-1"]
[Round "08"]
[TimeControl "180+2"]
[Date "2023.05.23"]
[WhiteClock "0:00:12"]
[BlackClock "0:00:22"]

1. e4 {[%clk 0:02:56]}  c6 {[%clk 0:02:58]} 2. e5 {[%clk 0:02:51]}  d5 {[%clk 0:02:50]} 3. d4 {[%clk 0:02:50]}  Bf5 {[%clk 0:02:50]} 4. h4 {[%clk 0:02:50]}  h5 {[%clk 0:02:49]} 5. Bd3 {[%clk 0:02:50]}  Bxd3 {[%clk 0:02:50]} 6. Qxd3 {[%clk 0:02:51]}  Qa5+ {[%clk 0:02:50]} 7. Nd2 {[%clk 0:02:50]}  e6 {[%clk 0:02:50]} 8. Ne2 {[%clk 0:02:45]}  Nh6 {[%clk 0:02:46]} 9. O-O {[%clk 0:02:38]}  Nf5 {[%clk 0:02:45]} 10. Nf3 {[%clk 0:02:38]}  Qa6 {[%clk 0:02:43]} 11. Qd1 {[%clk 0:02:28]}  c5 {[%clk 0:02:42]} 12. dxc5 {[%clk 0:02:20]}  Bxc5 {[%clk 0:02:42]} 13. a3 {[%clk 0:02:12]}  Nd7 {[%clk 0:02:36]} 14. b4 {[%clk 0:02:12]}  Bxb4 {[%clk 0:02:31]} 15. Bb2 {[%clk 0:01:56]}  Be7 {[%clk 0:02:29]} 16. g3 {[%clk 0:01:46]}  Nc5 {[%clk 0:02:29]} 17. Ned4 {[%clk 0:01:46]}  Nxd4 {[%clk 0:02:25]} 18. Bxd4 {[%clk 0:01:44]}  Ne4 {[%clk 0:02:24]} 19. a4 {[%clk 0:01:39]}  Rc8 {[%clk 0:02:21]} 20. a5 {[%clk 0:01:34]}  O-O {[%clk 0:02:19]} 21. Nd2 {[%clk 0:01:29]}  Nxd2 {[%clk 0:02:14]} 22. Qxd2 {[%clk 0:01:29]}  Rc4 {[%clk 0:02:14]} 23. Rfb1 {[%clk 0:01:26]}  Rfc8 {[%clk 0:02:13]} 24. c3 {[%clk 0:01:27]}  Bc5 {[%clk 0:01:57]} 25. Rb2 {[%clk 0:01:09]}  Bxd4 {[%clk 0:01:44]} 26. cxd4 {[%clk 0:01:08]}  Qc6 {[%clk 0:01:44]} 27. Rab1 {[%clk 0:00:58]}  Rc1+ {[%clk 0:01:41]} 28. Kg2 {[%clk 0:00:58]}  Rxb1 {[%clk 0:01:30]} 29. Rxb1 {[%clk 0:00:58]}  b5 {[%clk 0:01:17]} 30. axb6 {[%clk 0:00:35]}  axb6 {[%clk 0:01:16]} 31. Qb4 {[%clk 0:00:36]}  Rb8 {[%clk 0:00:50]} 32. Qe7 {[%clk 0:00:27]}  b5 {[%clk 0:00:47]} 33. Ra1 {[%clk 0:00:24]}  Re8 {[%clk 0:00:28]} 34. Qg5 {[%clk 0:00:19]}  Qc3 {[%clk 0:00:23]} 35. Ra7 {[%clk 0:00:15]}  Qxd4 {[%clk 0:00:23]} 36. Qxh5 {[%clk 0:00:12]}  Qxa7 {[%clk 0:00:22]} 0-1


[Site "https://www.chess.com"]

[Event "Titled Tuesday Blitz May 23 Early 2023"]
[White "Javakhadze, Zurab"]
[Black "Sukandar, Irine Kharisma"]
[WhiteFideId "13603647"]
[BlackFideId "7101937"]
[WhiteElo "2381"]
[BlackElo "2315"]
[Result "1-0"]
[Round "08"]
[TimeControl "180+2"]
[Date "2023.05.23"]
[WhiteClock "0:00:05"]
[BlackClock "0:00:00"]

1. Nf3 {[%clk 0:03:00]}  c5 {[%clk 0:02:59]} 2. g3 {[%clk 0:02:59]}  Nc6 {[%clk 0:02:58]} 3. Bg2 {[%clk 0:02:59]}  g6 {[%clk 0:02:56]} 4. O-O {[%clk 0:02:58]}  Bg7 {[%clk 0:02:56]} 5. e4 {[%clk 0:02:56]}  Nf6 {[%clk 0:02:54]} 6. Re1 {[%clk 0:02:56]}  O-O {[%clk 0:02:53]} 7. c3 {[%clk 0:02:51]}  d6 {[%clk 0:02:41]} 8. h3 {[%clk 0:02:48]}  Rb8 {[%clk 0:02:37]} 9. d4 {[%clk 0:02:48]}  b5 {[%clk 0:02:22]} 10. d5 {[%clk 0:01:59]}  Na5 {[%clk 0:02:17]} 11. e5 {[%clk 0:01:57]}  dxe5 {[%clk 0:02:14]} 12. Nxe5 {[%clk 0:01:58]}  Bb7 {[%clk 0:02:09]} 13. Nc6 {[%clk 0:01:30]}  Bxc6 {[%clk 0:02:07]} 14. dxc6 {[%clk 0:01:31]}  Qxd1 {[%clk 0:02:01]} 15. Rxd1 {[%clk 0:01:32]}  Rfc8 {[%clk 0:02:01]} 16. Be3 {[%clk 0:01:29]}  Nxc6 {[%clk 0:01:33]} 17. Bxc5 {[%clk 0:01:28]}  e6 {[%clk 0:01:29]} 18. Bxc6 {[%clk 0:01:23]}  Rxc6 {[%clk 0:01:29]} 19. Bxa7 {[%clk 0:01:23]}  Ra8 {[%clk 0:01:22]} 20. Bd4 {[%clk 0:01:19]}  Re8 {[%clk 0:00:58]} 21. Na3 {[%clk 0:01:15]}  e5 {[%clk 0:00:57]} 22. Be3 {[%clk 0:01:13]}  Rb8 {[%clk 0:00:56]} 23. Nxb5 {[%clk 0:00:49]}  Rxb5 {[%clk 0:00:46]} 24. Rd8+ {[%clk 0:00:49]}  Bf8 {[%clk 0:00:46]} 25. Bh6 {[%clk 0:00:49]}  Nd7 {[%clk 0:00:41]} 26. Rd1 {[%clk 0:00:47]}  g5 {[%clk 0:00:38]} 27. Bxg5 {[%clk 0:00:31]}  Nc5 {[%clk 0:00:30]} 28. Be7 {[%clk 0:00:19]}  Ne6 {[%clk 0:00:29]} 29. Rxf8+ {[%clk 0:00:20]}  Nxf8 {[%clk 0:00:29]} 30. Rd8 {[%clk 0:00:20]}  Rxb2 {[%clk 0:00:28]} 31. Bxf8 {[%clk 0:00:20]}  Rb1+ {[%clk 0:00:21]} 32. Kg2 {[%clk 0:00:20]}  f6 {[%clk 0:00:20]} 33. Bb4+ {[%clk 0:00:17]}  Kf7 {[%clk 0:00:20]} 34. a4 {[%clk 0:00:18]}  Ra1 {[%clk 0:00:16]} 35. a5 {[%clk 0:00:19]}  Ra2 {[%clk 0:00:16]} 36. g4 {[%clk 0:00:14]}  Rc4 {[%clk 0:00:12]} 37. Kg3 {[%clk 0:00:11]}  Rf4 {[%clk 0:00:12]} 38. f3 {[%clk 0:00:11]}  Rc4 {[%clk 0:00:12]} 39. Rd7+ {[%clk 0:00:08]}  Kg6 {[%clk 0:00:12]} 40. h4 {[%clk 0:00:08]}  h5 {[%clk 0:00:11]} 41. gxh5+ {[%clk 0:00:06]}  Kxh5 {[%clk 0:00:10]} 42. Rh7+ {[%clk 0:00:07]}  Kg6 {[%clk 0:00:10]} 43. Rh8 {[%clk 0:00:08]}  f5 {[%clk 0:00:09]} 44. Rg8+ {[%clk 0:00:08]}  Kh7 {[%clk 0:00:09]} 45. Rg5 {[%clk 0:00:07]}  f4+ {[%clk 0:00:06]} 46. Kg4 {[%clk 0:00:06]}  Rg2+ {[%clk 0:00:05]} 47. Kf5 {[%clk 0:00:06]}  Rxg5+ {[%clk 0:00:01]} 48. hxg5 {[%clk 0:00:05]}  e4 {[%clk 0:00:00]} 49. a6 {[%clk 0:00:05]} 1-0


[Site "https://www.chess.com"]